{"text_format":"1","workbook":"xlsx","n_sheets":10,"sheets":["0 | Cover","1 | Informazioni generali","2 | Scopo di accreditamento","3 | Risorse - Personale","4 | Risorse - Aree dedicate","5 | Risorse - Attrezzatura","6 | Fornitori attività esterne","7 | Documenti sistema gestione","8 | Allegati","_config"],"not_rendered":{"charts":0,"images":1,"macros":1,"external_links":0,"defined_names":122,"comments":0,"pivot_tables":0},"unopened":[],"bounds":{"document_bytes":16777216,"sheet_cells":100000,"rows_first":2000,"rows_last":500,"rows_between":2000,"halvings":0,"cell_chars":16384,"cell_head_chars":4096},"cells_cut":0,"cells_raw":0,"read":"whole","date_system":"1900"}

{"sheet":"0 | Cover","index":0,"n_rows":22,"n_cols":14,"rows_kept":22,"cut":false,"hidden":false,"merged":[[21,1,28,11],[0,0,0,3],[2,3,2,4],[2,6,2,11],[3,3,3,4],[3,6,3,11],[4,3,4,11],[5,3,5,11],[6,3,6,11],[8,1,8,11],[10,1,17,11],[19,1,19,11]]}
["Dipartimento Laboratori di Taratura"]
[]
[null,"Titolo / Title",null,"Domanda di accreditamento per Biobanche (BBK)",null,null,"in conformità alla norma UNI CEI EN ISO 20387:2024"]
[null,null,null,"Application for Accreditation of Biobanks (BBK)",null,null,"in accordance to the standard ISO 20387:2018"]
[null,"Sigla / Reference",null,"DA-12",null,null,null,null,null,null,null,null,null,{"$f":"CONCATENATE(D5,\" rev. \",D6)","v":"DA-12 rev. 01-00"}]
[null,"Revisione / Revision",null,"01-00"]
[null,"Entrata in vigore / Application date",null,"03-02-2025"]
[]
[null,"Note di revisione"]
[]
[null,"La struttura complessiva del documento della domanda DA-12 (ora in rev. 01) non è stata modificata, tuttavia si sono apportate le modifiche di seguito indicate:\n- Aggiunta della presente sezione (Cover) con le informazioni relative alla revisione corrente della DA-12;\n- Revisione grafica a seguito di entrata in vigore della nuova corporate Accredia;\n- Sez. 1: aggiornamento delle possibili istanze della domanda;\n- Sez. 2: eliminazione della voce \"Smaltimento\" tra le possibili attività oggetto di accreditamento;\n- Sez. 6: eliminazione della voce \"Smaltimento\" tra le possibili attività del fornitore esterno;\n- Sez. 7: eliminazione del campo \"Requisito\";\n- Sez. 8: aggiornamento delle possibili istanze della domanda e dei relativi allegati.\n\nL'All. 1 “Aree – settori (biobanking)” (emesso in rev. 00) non è stato oggetto di aggiornamento.\n"]
[]
[]
[]
[]
[]
[]
[]
[]
[null,"Note alla compilazione"]
[]
[null,"Si presti attenzione alle note informative presenti nelle diverse sezioni del documento."]

{"sheet":"1 | Informazioni generali","index":1,"n_rows":58,"n_cols":12,"rows_kept":58,"cut":false,"hidden":false,"merged":[[41,3,41,9],[30,3,30,10],[32,3,32,10],[33,3,33,10],[25,3,25,11],[35,1,35,11],[36,7,36,11],[37,3,37,9],[38,3,38,9],[47,1,47,10],[49,1,49,10],[51,6,51,10],[53,6,53,10],[14,3,14,4],[14,8,14,11],[26,3,26,10],[27,3,27,10],[28,3,28,10],[29,3,29,10],[39,3,39,9],[40,3,40,9],[42,3,42,9],[43,3,43,9],[44,3,44,9],[46,1,46,10],[21,3,21,4],[21,6,21,11],[23,3,23,11],[26,1,33,1],[8,3,8,4],[8,6,8,11],[10,1,18,1],[10,3,10,4],[10,8,10,11],[12,3,12,4],[12,8,12,11],[16,3,16,4],[16,6,19,11],[18,3,18,4],[0,0,0,3],[3,1,3,11],[5,1,7,1],[5,3,7,4],[5,6,5,7],[5,8,5,9],[7,6,7,11]]}
["Dipartimento Laboratori di Taratura"]
[{"$f":"REV_DA","v":"DA-12 rev. 01-00"}]
[]
["1","Generalità"]
[]
[null,"Denominazione\ndel CAB\n(come richiesto \nin DA-00 §2.1.2)",null,null,null,null,"BBK",null,"Numero (se disponibile)"]
[]
[]
[null,"Sito web",null,"www.",null,null,"[Digitare \"x\" nella casella di sinistra, poi riportare a destra\n i riferimenti dell'accreditamento]"]
[]
[null,"Indicare eventuali ulteriori accreditamenti \ne/o certificazioni del CAB",null,"Produttore di materiali di riferimento (ISO 17034)"]
[]
[null,null,null,"Laboratorio di prova (ISO/IEC 17025)"]
[]
[null,null,null,"Laboratorio medico (ISO 15189)"]
[]
[null,null,null,"Altri accreditamenti/certificazioni [Specificare a lato]"]
[]
[]
[]
[]
[null,"Domanda di",null,"ACCREDITAMENTO"]
[]
[null,"Ove necessario, \nriportare informazioni utili \na comprendere l'oggetto/obiettivo\ndella domanda presentata"]
[]
[null,null,null,"Indicare l'indirizzo del luogo in cui si esegue biobanking (città, via e numero civico)\n(per una precisa identificazione dei locali e delle aree utilizzate in ciascun luogo indicato, si faccia riferimento alla sezione 4)\n[Ad ogni luogo viene automaticamente associato un codice univoco nella colonna \"ID\"]"]
[null,"Per l'esecuzione di\nbiobanking presso:",null,"Indirizzo",null,null,null,null,null,null,null,"ID"]
[null,null,null,null,null,null,null,null,null,null,null,{"$f":"IF(D28=\"\",\"\",\"A\")","v":""}]
[null,null,null,null,null,null,null,null,null,null,null,{"$f":"IF(D29=\"\",\"\",\"B\")","v":""}]
[null,null,null,null,null,null,null,null,null,null,null,{"$f":"IF(D30=\"\",\"\",\"C\")","v":""}]
[null,null,null,null,null,null,null,null,null,null,null,{"$f":"IF(D31=\"\",\"\",\"D\")","v":""}]
[null,null,null,null,null,null,null,null,null,null,null,{"$f":"IF(D32=\"\",\"\",\"E\")","v":""}]
[null,null,null,null,null,null,null,null,null,null,null,{"$f":"IF(D33=\"\",\"\",\"F\")","v":""}]
[null,null,null,null,null,null,null,null,null,null,null,{"$f":"IF(D34=\"\",\"\",\"G\")","v":""}]
[]
[null,"Elenco sezioni di cui è composta la presente DA-12:"]
[null,null,null,null,null,null,null,"[Digitare \"x\" per indicare l'avvenuta compilazione della sezione]"]
[null,"Sez. 1",null,"Informazioni generali (questa sezione)"]
[null,"Sez. 2",null,{"$f":"'2 | Scopo di accreditamento'!B4","v":"Scopo di accreditamento"}]
[null,"Sez. 3",null,{"$f":"'3 | Risorse - Personale'!B4","v":"Risorse | Personale"}]
[null,"Sez. 4",null,{"$f":"'4 | Risorse - Aree dedicate'!B4","v":"Risorse | Strutture / Aree dedicate"}]
[null,"Sez. 5",null,{"$f":"'5 | Risorse - Attrezzatura'!B4","v":"Risorse | Attrezzature"}]
[null,"Sez. 6",null,{"$f":"'6 | Fornitori attività esterne'!B4","v":"Fornitori di attività esterne"}]
[null,"Sez. 7",null,{"$f":"'7 | Documenti sistema gestione'!B4","v":"Documentazione del sistema di gestione"}]
[null,"Sez. 8",null,{"$f":"'8 | Allegati'!B4","v":"Allegati da inviare a corredo della presente domanda"}]
[]
[null,"Motivare il caso in cui una o più sezioni non siano state compilate:"]
[]
[]
[null," Dichiaro che la presente domanda DA-12, annesso specifico alla Domanda di Accreditamento DA-00, è completa in tutte le sezioni richieste fatte salve le motivazioni riportate in precedenza. "]
[]
[null,"Data di ultima compilazione"]
[]
[null,"Versione \ndella presente domanda"]
[]
[null,"Timbro del Laboratorio, \nnominativo e firma\ndel Legale Rappresentante (1)"]
[]
[null,"(1)",null,"Legale rappresentante o suo delegato."]

{"sheet":"2 | Scopo di accreditamento","index":2,"n_rows":77,"n_cols":13,"rows_kept":77,"cut":false,"hidden":false,"merged":[[15,3,15,5],[5,1,5,7],[0,0,0,1],[3,1,3,10],[1,0,1,1],[9,1,9,5],[11,1,11,5],[10,1,10,5],[13,1,13,5],[12,1,12,4],[12,5,12,6],[6,1,6,4]]}
["Dipartimento Laboratori di Taratura"]
[{"$f":"REV_DA","v":"DA-12 rev. 01-00"}]
[]
["2","Scopo di accreditamento"]
[]
["Scopo:","Indicare le aree e i settori (cfr. All. 1 alla presente DA-12), il materiale biologico, i dati associati e le attività per le quali la Biobanca chiede di essere accreditata."]
[null,"Nella compilazione di questa sezione si prega di attenersi strettamente alle indicazioni riportate nelle note seguenti."]
[]
["Note:"]
["(1)","Indicare eventuali variazioni rispetto alla attuale tabella di accreditamento (nel caso di domanda di Rinnovo o di Estensione/Riduzione). [Digitare \"x\" per selezionare]"]
["(2)","Lasciare il campo vuoto nel caso di nuovo settore, ovvero di un settore non ancora presente nell'All. 1 per la specifica area di interesse. "]
["(3)","Indicare le attività di biobanking eseguite sullo specifico materiale biologico, con riferimento a quelle previste punto 3.6 della UNI CEI EN ISO 20387:2024."]
["(4)","Indicare la procedura (o le procedure) relative allo specifico oggetto di accreditamento, utilizzando il relativo ID di cui all'elenco delle procedure (sezione 7).",null,null,null,"Vai all'elenco documentazione >>>"]
["i","Nella compilazione di questi campi si faccia riferimento agli esempi riportati come commento ad ogni singolo campo/colonna."]
[]
[null,null,null,"Composizione del materiale biologico i"]
["Variazione\n(1)","Area","Settore\n(2)","Tipo","Ulteriore specificazione\n(opzionale)","Origine (host) / Collezione","Dati associati i","Attività i\n(3)","Procedura / SOP\n(4)","Luogo / Locale i","Note"]
[null,null,null,null,null,null,null,null,null,null,null,null,{"$f":"VLOOKUP(B18,_AREECOD,2,FALSE)","v":{"$error":"#N/A"}}]
[null,null,null,null,null,null,null,null,null,"",null,null,{"$error":"#N/A"}]
[null,null,null,null,null,null,null,null,null,null,null,null,{"$error":"#N/A"}]
[null,null,null,null,null,null,null,null,null,null,null,null,{"$error":"#N/A"}]
[null,null,null,null,null,null,null,null,null,null,null,null,{"$error":"#N/A"}]
[null,null,null,null,null,null,null,null,null,null,null,null,{"$error":"#N/A"}]
[null,null,null,null,null,null,null,null,null,null,null,null,{"$error":"#N/A"}]
[null,null,null,null,null,null,null,null,null,null,null,null,{"$error":"#N/A"}]
[null,null,null,null,null,null,null,null,null,null,null,null,{"$error":"#N/A"}]
[null,null,null,null,null,null,null,null,null,null,null,null,{"$error":"#N/A"}]
[null,null,null,null,null,null,null,null,null,null,null,null,{"$error":"#N/A"}]
[null,null,null,null,null,null,null,null,null,null,null,null,{"$error":"#N/A"}]
[null,null,null,null,null,null,null,null,null,null,null,null,{"$error":"#N/A"}]
[null,null,null,null,null,null,null,null,null,null,null,null,{"$error":"#N/A"}]
[null,null,null,null,null,null,null,null,null,null,null,null,{"$error":"#N/A"}]
[null,null,null,null,null,null,null,null,null,null,null,null,{"$error":"#N/A"}]
[null,null,null,null,null,null,null,null,null,null,null,null,{"$error":"#N/A"}]
[null,null,null,null,null,null,null,null,null,null,null,null,{"$error":"#N/A"}]
[null,null,null,null,null,null,null,null,null,null,null,null,{"$error":"#N/A"}]
[null,null,null,null,null,null,null,null,null,null,null,null,{"$error":"#N/A"}]
[null,null,null,null,null,null,null,null,null,null,null,null,{"$error":"#N/A"}]
[null,null,null,null,null,null,null,null,null,null,null,null,{"$error":"#N/A"}]
[null,null,null,null,null,null,null,null,null,null,null,null,{"$error":"#N/A"}]
[null,null,null,null,null,null,null,null,null,null,null,null,{"$error":"#N/A"}]
[null,null,null,null,null,null,null,null,null,null,null,null,{"$error":"#N/A"}]
[null,null,null,null,null,null,null,null,null,null,null,null,{"$error":"#N/A"}]
[null,null,null,null,null,null,null,null,null,null,null,null,{"$error":"#N/A"}]
[null,null,null,null,null,null,null,null,null,null,null,null,{"$error":"#N/A"}]
[null,null,null,null,null,null,null,null,null,null,null,null,{"$error":"#N/A"}]
[null,null,null,null,null,null,null,null,null,null,null,null,{"$error":"#N/A"}]
[null,null,null,null,null,null,null,null,null,null,null,null,{"$error":"#N/A"}]
[null,null,null,null,null,null,null,null,null,null,null,null,{"$error":"#N/A"}]
[null,null,null,null,null,null,null,null,null,null,null,null,{"$f":"VLOOKUP(B50,_AREECOD,2,FALSE)","v":{"$error":"#N/A"}}]
[null,null,null,null,null,null,null,null,null,null,null,null,{"$error":"#N/A"}]
[null,null,null,null,null,null,null,null,null,null,null,null,{"$error":"#N/A"}]
[null,null,null,null,null,null,null,null,null,null,null,null,{"$error":"#N/A"}]
[null,null,null,null,null,null,null,null,null,null,null,null,{"$error":"#N/A"}]
[null,null,null,null,null,null,null,null,null,null,null,null,{"$error":"#N/A"}]
[null,null,null,null,null,null,null,null,null,null,null,null,{"$error":"#N/A"}]
[null,null,null,null,null,null,null,null,null,null,null,null,{"$error":"#N/A"}]
[null,null,null,null,null,null,null,null,null,null,null,null,{"$error":"#N/A"}]
[null,null,null,null,null,null,null,null,null,null,null,null,{"$error":"#N/A"}]
[null,null,null,null,null,null,null,null,null,null,null,null,{"$error":"#N/A"}]
[null,null,null,null,null,null,null,null,null,null,null,null,{"$error":"#N/A"}]
[null,null,null,null,null,null,null,null,null,null,null,null,{"$error":"#N/A"}]
[null,null,null,null,null,null,null,null,null,null,null,null,{"$error":"#N/A"}]
[null,null,null,null,null,null,null,null,null,null,null,null,{"$error":"#N/A"}]
[null,null,null,null,null,null,null,null,null,null,null,null,{"$error":"#N/A"}]
[null,null,null,null,null,null,null,null,null,null,null,null,{"$error":"#N/A"}]
[null,null,null,null,null,null,null,null,null,null,null,null,{"$error":"#N/A"}]
[null,null,null,null,null,null,null,null,null,null,null,null,{"$error":"#N/A"}]
[null,null,null,null,null,null,null,null,null,null,null,null,{"$error":"#N/A"}]
[null,null,null,null,null,null,null,null,null,null,null,null,{"$error":"#N/A"}]
[null,null,null,null,null,null,null,null,null,null,null,null,{"$error":"#N/A"}]
[null,null,null,null,null,null,null,null,null,null,null,null,{"$error":"#N/A"}]
[null,null,null,null,null,null,null,null,null,null,null,null,{"$error":"#N/A"}]
[null,null,null,null,null,null,null,null,null,null,null,null,{"$error":"#N/A"}]
[null,null,null,null,null,null,null,null,null,null,null,null,{"$error":"#N/A"}]
[null,null,null,null,null,null,null,null,null,null,null,null,{"$error":"#N/A"}]
[null,null,null,null,null,null,null,null,null,null,null,null,{"$error":"#N/A"}]

{"sheet":"3 | Risorse - Personale","index":3,"n_rows":31,"n_cols":6,"rows_kept":31,"cut":false,"hidden":false,"merged":[[13,1,13,5],[0,0,0,1],[3,1,3,5],[5,1,5,5],[8,1,8,5],[12,1,12,5],[9,1,9,5],[10,1,10,5],[11,1,11,5],[1,0,1,1]]}
["Dipartimento Laboratori di Taratura"]
[{"$f":"REV_DA","v":"DA-12 rev. 01-00"}]
[]
["3","Risorse | Personale"]
[]
["Scopo:","Fornire informazioni relative al personale della Biobanca, in termini di responsabilità assegnata (ruolo / funzione) e di competenza."]
[]
["Note:"]
["(1)","Indicare il ruolo e/o la funzione assegnata, con riferimento all'organigramma della struttura della Biobanca (cfr. A.1 nella sez. Allegati) e ai diversi ruoli/funzioni per i quali la Biobanca abbia individuato e documentato i necessari requisiti di competenza."]
[null,"Si ricorda quanto previsto ai punti 5.8 e 5.9 della UNI CEI EN ISO 20387:2024 e di RT-38."]
["(2)","Selezionare nel caso di personale della Biobanca con rapporto di lavoro a tempo indeterminato (\"permanent staff\").  [Digitare \"x\" per selezionare]"]
[null,"Non può essere considerato \"permanent staff\" il personale che, pur operando all'interno della Biobanca, ha con la Biobanca stessa un rapporto a termine, quali ad esempio (lista non esaustiva) contratti a tempo determinato, borse di studio per attività di ricerca, dottorato."]
["(3)","Selezionare nel caso di personale esterno alla Biobanca, ovvero a contratto per lo svolgimento delle funzioni assegnate.  [Digitare \"x\" per selezionare]"]
["(4)","Indicare le aree di competenza specifica nell'ambito delle attività della Biobanca, oppure indicare \"Sistema di gestione\"."]
[]
["ID","Nome e Cognome","Ruolo / Funzione \n(1)","Permanente\n(2)","Esterno\n(3)","Aree di competenza (4)"]
[1]
[2]
[3]
[4]
[5]
[6]
[7]
[8]
[9]
[10]
[11]
[12]
[13]
[14]
[15]

{"sheet":"4 | Risorse - Aree dedicate","index":4,"n_rows":31,"n_cols":14,"rows_kept":31,"cut":false,"hidden":false,"merged":[[0,0,0,1],[1,0,1,1],[12,1,12,5],[3,1,3,10],[19,7,19,10],[17,6,17,8],[13,6,13,8],[16,6,16,8],[13,1,13,5],[14,1,14,5],[15,1,15,5],[16,1,16,5],[17,1,17,5],[11,1,11,5],[8,1,8,5],[9,1,9,5],[10,1,10,5],[5,1,5,7]]}
["Dipartimento Laboratori di Taratura"]
[{"$f":"REV_DA","v":"DA-12 rev. 01-00"}]
[]
["4","Risorse | Strutture / Aree dedicate"]
[]
["Scopo:","Riportare l'elenco completo delle strutture / aree dedicate nelle quali la Biobanca effettua le proprie attività di biobanking oggetto di accreditamento, comprese quelle eventualmente non di proprietà della stessa Biobanca."]
[]
["Note:"]
["(1)","Indicare il luogo in cui si esegue biobanking, utilizzando il relativo ID di cui all'elenco in sezione 1. [Le possibili voci vengono presentate nell'elenco all'interno della cella]. Riportare quindi nella colonna successiva il codice identificativo (ove applicabile, altrimenti un numero progressivo) dello specifico locale/area all'interno del luogo in oggetto.\nQualora le attività di biobanking interessassero più locali/aree, si compilino più righe (una per ogni locale/area). "]
["(2)","Riportare tutte le informazioni che permettono una precisa localizzazione del locale/area all'interno del luogo specifico."]
["(3)","Selezionare nel caso in cui il locale non sia di proprietà della Biobanca [Digitare \"x\" per selezionare]."]
["(4)","Selezionare nel caso in cui il locale sia ad uso esclusivodella Biobanca, quale che sia la proprietà [Digitare \"x\" per selezionare]."]
["(5)","Indicare le attività di biobanking effettuate nello specifico locale."]
["(6)","Ove applicabile, indicare la procedura con la quale è regolato l'accesso allo specifico locale. [Utilizzare il relativo ID di cui all'elenco dei documenti (sez. 7)]",null,null,null,null,"Vai all'elenco documentazione >>>"]
["(7)","Selezionare nel caso in cui le condizioni ambientali nel locale siano ritenute critiche. [Digitare \"x\" per selezionare]"]
["(8)","Riportare i parametri ambientali (ad es. temperatura, umidità) oggetto di misurazione e monitoraggio."]
["(9)","Indicare gli strumenti utilizzati per la misurazione e il monitoraggio. [Utilizzare il relativo ID di cui all'elenco delle attrezzature (sez. 5)]",null,null,null,null,"Vai all'elenco attrezzature >>>"]
["(10)","Indicare la/e procedura/e relative alle condizioni ambientali. [Utilizzare il relativo ID di cui all'elenco dei documenti (sez. 7)]",null,null,null,null,"Vai all'elenco documentazione >>>"]
[]
[null,null,null,null,null,null,"Accesso","Condizioni ambientali"]
["ID\n(1)","Codice di identificazione del locale","Localizzazione\n(Palazzina, piano, ...)\n(2)","Non di proprietà\n(3)","Uso esclusivo\n(4)","Attività svolta\n(5)","Procedura\n(6)","Critiche\n(7)","Parametri oggetto di monitoraggio\n(8)","Strumentazione\n(9)","Procedura/e\n(10)"]
[null,null,null,null,null,null,null,null,null,null,null,null,null,{"$f":"IF(A22=\"\",\"\",CONCATENATE(A22,\".\",B22))","v":""}]
[null,null,null,null,null,null,null,null,null,null,null,null,null,{"$f":"IF(A23=\"\",\"\",CONCATENATE(A23,\".\",B23))","v":""}]
[null,null,null,null,null,null,null,null,null,null,null,null,null,""]
[null,null,null,null,null,null,null,null,null,null,null,null,null,""]
[null,null,null,null,null,null,null,null,null,null,null,null,null,""]
[null,null,null,null,null,null,null,null,null,null,null,null,null,""]
[null,null,null,null,null,null,null,null,null,null,null,null,null,""]
[null,null,null,null,null,null,null,null,null,null,null,null,null,""]
[null,null,null,null,null,null,null,null,null,null,null,null,null,""]
[null,null,null,null,null,null,null,null,null,null,null,null,null,""]

{"sheet":"5 | Risorse - Attrezzatura","index":5,"n_rows":59,"n_cols":14,"rows_kept":59,"cut":false,"hidden":false,"merged":[[1,0,1,1],[3,1,3,13],[5,1,5,8],[8,1,8,8],[0,0,0,1],[14,1,14,8],[16,11,16,13],[14,9,14,10],[10,1,10,8],[9,1,9,8],[13,1,13,8],[11,1,11,8],[12,1,12,8]]}
["Dipartimento Laboratori di Taratura"]
[{"$f":"REV_DA","v":"DA-12 rev. 01-00"}]
[]
["5","Risorse | Attrezzature"]
[]
["Scopo:","Riportare l'elenco completo delle attrezzature (es. campioni, strumenti, materiali di riferimento, software, …) utilizzate dalla Biobanca per la propria attività di biobanking oggetto di accreditamento, comprese quelle eventualmente non di proprietà della Biobanca."]
[]
["Note:"]
["(1)","Numero progressivo."]
["(2)","Selezionare nel caso in cui l'attrezzatura sia ritenuta critica, ovvero tale da avere il potenziale di incidere sulla qualità del materiale biologico e dati associati."]
[null,"Si faccia riferimento alla classificazione richiesta al punto 6.5.4 della UNI CEI EN ISO 20387:2024."]
["(3)","Selezionare nel caso in cui l'attrezzatura non sia di proprietà della Biobanca [Digitare \"x\" per selezionare]"]
["(4)","Selezionare nel caso in cui l'attrezzatura sia ad uso esclusivodella Biobanca, quale che sia la proprietà [Digitare \"x\" per selezionare]."]
["(5)","Indicare la procedura (o le procedure) nella quale l'attrezzatura è utilizzata (Utilizzo) e quelle che definiscono le attività di gestione a carico della attrezzatura (Gestione). "]
[null,"[Utilizzare il relativo ID di cui all'elenco dei documenti del sistema di gestione (sezione 7).]",null,null,null,null,null,null,null,"Vai all'elenco documentazione >>>"]
[]
[null,null,null,null,null,null,null,null,null,"Utilizzo","Gestione","Taratura (ove applicabile)"]
["ID\n(1)","Critica\n(2)","Non di proprietà\n(3)","Uso esclusivo\n(4)","Descrizione","Costruttore / Produttore","Data di costruzione\n(anno)","Modello / tipo","Numero di matricola","Procedura\n(5)","Procedura\n(5)","Periodicità\n(mesi)","Fornitore esterno","Numero / data dell'ultimo Certificato di Taratura"]
[1]
[{"$f":"IF(B20=\"\",\"\",IF(A19=\"\",\"\",(A19+1)))","v":""}]
[{"$f":"IF(B21=\"\",\"\",IF(A20=\"\",\"\",(A20+1)))","v":""}]
[""]
[""]
[""]
[""]
[""]
[""]
[""]
[""]
[""]
[""]
[""]
[""]
[""]
[""]
[""]
[""]
[""]
[""]
[""]
[""]
[""]
[""]
[""]
[""]
[""]
[""]
[""]
[""]
[""]
[""]
[""]
[""]
[""]
[""]
[""]
[""]
[""]
[""]

{"sheet":"6 | Fornitori attività esterne","index":6,"n_rows":45,"n_cols":7,"rows_kept":45,"cut":false,"hidden":false,"merged":[[37,0,44,0],[37,1,44,1],[37,2,44,2],[37,3,44,3],[37,6,44,6],[12,4,12,5],[21,0,28,0],[21,1,28,1],[21,2,28,2],[21,3,28,3],[13,1,20,1],[13,2,20,2],[13,0,20,0],[10,1,10,6],[0,0,0,1],[3,1,3,3],[9,1,9,6],[5,1,5,6],[8,1,8,6],[1,0,1,1],[13,6,20,6],[13,3,20,3],[29,0,36,0],[29,1,36,1],[29,2,36,2],[29,3,36,3],[29,6,36,6],[21,6,28,6]]}
["Dipartimento Laboratori di Taratura"]
[{"$f":"REV_DA","v":"DA-12 rev. 01-00"}]
[]
["6","Fornitori di attività esterne"]
[]
["Scopo:","Fornire informazioni relative agli eventuali fornitori di attività esterne, ovvero organismi competenti ai quali la Biobanca affida parte delle attività di biobanking."]
[]
["Note:"]
["(1)","Riportare i riferimenti di eventuali accreditamenti pertinenti del fornitore (ad esempio, laboratorio di prova, produttore di materiali di riferimento, laboratorio di taratura, biobanca).\nLasciare vuoto nel caso il fornitore non disponga di alcun accreditamento."]
["(2)","Selezionare le attività affidate al fornitore, con riferimento a quelle previste punto 3.6 della UNI CEI EN ISO 20387:2024. [Digitare \"x\" a fianco della attività da selezionare]"]
["(3)","Inserire ogni altra informazione si ritenga utile per meglio descrivere il rapporto in essere con il fornitore."]
[]
["ID","Ragione sociale","Indirizzo","Eventuali accreditamenti \n(1)","Attività a carico del fornitore\n (2)",null,"Eventuali informazioni aggiuntive\n (3)"]
["FE1",null,null,null,"Raccolta"]
[null,null,null,null,"Acquisizione"]
[null,null,null,null,"Preparazione"]
[null,null,null,null,"Preservazione"]
[null,null,null,null,"Conservazione"]
[null,null,null,null,"Prova"]
[null,null,null,null,"Analisi"]
[null,null,null,null,"Distribuzione"]
["FE2",null,null,null,"Raccolta"]
[null,null,null,null,"Acquisizione"]
[null,null,null,null,"Preparazione"]
[null,null,null,null,"Preservazione"]
[null,null,null,null,"Conservazione"]
[null,null,null,null,"Prova"]
[null,null,null,null,"Analisi"]
[null,null,null,null,"Distribuzione"]
["FE3",null,null,null,"Raccolta"]
[null,null,null,null,"Acquisizione"]
[null,null,null,null,"Preparazione"]
[null,null,null,null,"Preservazione"]
[null,null,null,null,"Conservazione"]
[null,null,null,null,"Prova"]
[null,null,null,null,"Analisi"]
[null,null,null,null,"Distribuzione"]
["FE4",null,null,null,"Raccolta"]
[null,null,null,null,"Acquisizione"]
[null,null,null,null,"Preparazione"]
[null,null,null,null,"Preservazione"]
[null,null,null,null,"Conservazione"]
[null,null,null,null,"Prova"]
[null,null,null,null,"Analisi"]
[null,null,null,null,"Distribuzione"]

{"sheet":"7 | Documenti sistema gestione","index":7,"n_rows":15,"n_cols":6,"rows_kept":15,"cut":false,"hidden":false,"merged":[[1,0,1,1],[0,0,0,1],[14,2,14,3],[15,2,15,3],[16,2,16,3],[10,1,10,3],[12,0,12,1],[3,1,3,4],[5,1,5,4],[8,1,8,3],[8,4,8,5],[17,2,17,3],[18,2,18,3],[19,2,19,3],[20,2,20,3],[21,2,21,3],[22,2,22,3],[23,2,23,3],[24,2,24,3],[25,2,25,3],[26,2,26,3],[27,2,27,3],[28,2,28,3],[29,2,29,3],[30,2,30,3],[31,2,31,3],[32,2,32,3],[33,2,33,3],[34,2,34,3],[35,2,35,3],[36,2,36,3],[44,2,44,3],[45,2,45,3],[46,2,46,3],[37,2,37,3],[38,2,38,3],[39,2,39,3],[40,2,40,3],[41,2,41,3],[57,2,57,3],[58,2,58,3],[59,2,59,3],[12,3,12,5],[52,2,52,3],[53,2,53,3],[54,2,54,3],[55,2,55,3],[56,2,56,3],[47,2,47,3],[48,2,48,3],[49,2,49,3],[50,2,50,3],[51,2,51,3],[42,2,42,3],[43,2,43,3]]}
["Dipartimento Laboratori di Taratura"]
[{"$f":"REV_DA","v":"DA-12 rev. 01-00"}]
[]
["7","Documentazione del sistema di gestione"]
[]
["Scopo:","Identificare la documentazione del sistema di gestione attuato dalla Biobanca, ovvero documenti e procedure documentate nella loro revisione corrente e segnalando eventuali variazioni rispetto a precedenti versioni (già valutate positivamente da ACCREDIA DT)."]
[]
["Note:"]
["(1)","Numero progressivo, da utilizzarsi nella descrizione dello scopo di accreditamento (sezione 2).",null,null,"Vai allo scopo di accreditamento >>>"]
[]
["(2)","Selezionare nel caso di eventuali variazioni rispetto alle procedure già positivamente valutate da ACCREDIA DT (nel caso di domanda di Rinnovo o di Estensione/Riduzione o di Modifica dello scopo di accreditamento). [Digitare \"x\" per selezionare]"]
[]
["Opzione sistema di gestione",null,null,"Indicare l'opzione (A o B) adottata per il sistema di gestione, con riferimento a §8.1 della UNI CEI EN ISO 20387."]
[]
["ID\n(1)","Sigla / codice di identificazione","Titolo",null,"Indice di revisione","Variazione\n(2)"]

{"sheet":"8 | Allegati","index":8,"n_rows":20,"n_cols":19,"rows_kept":20,"cut":false,"hidden":false,"merged":[[19,1,19,10],[17,1,17,10],[11,1,11,10],[13,1,13,10],[15,1,15,10],[3,16,5,16],[3,17,5,17],[3,18,5,18],[5,1,5,10],[7,1,7,10],[3,14,5,14],[3,15,5,15],[9,1,9,10],[3,1,3,10],[3,11,5,11],[3,12,5,12],[3,13,5,13],[1,17,2,19],[0,0,0,2],[1,0,1,1],[1,12,2,12],[1,13,2,15],[1,16,2,16]]}
["Dipartimento Laboratori di Taratura"]
[{"$f":"REV_DA","v":"DA-12 rev. 01-00"},null,null,null,null,null,null,null,null,null,null,null,"X","Obbligatorio",null,null,"O","Limitatamente all'oggetto \ndella domanda"]
[]
["8","Allegati da inviare a corredo della presente domanda",null,null,null,null,null,null,null,null,null,"Accreditamento","Rinnovo\ncon/senza modifica scopo","Estensione","Modifica \nscopo di accreditamento","Mantenimento \ndello scopo flessibile","Adeguamento normativo","Riduzione","Variazione anagrafica /\nTrasferimento di titolarità"]
[]
["Nota:","Il mancato invio di tutti gli allegati richiesti rappresenta elemento sufficiente per la non accettabilità dell'intera domanda. "]
[]
["A.1","Organigramma nominativo della struttura della Biobanca\n(nel quale siano almeno indicate tutte le persone elencate nella sezione 3).",null,null,null,null,null,null,null,null,null,"X","X","O",null,null,null,"O","O"]
[]
["A.2","Curriculum professionale, datato e firmato, di tutto il personale indicato nella sezione 3.",null,null,null,null,null,null,null,null,null,"X","X","O",null,null,null,null,"O"]
[]
["A.3","Documentazione del Sistema di Gestione della Biobanca, come da elenco riportato nella sezione 7.\nOgni documento - in ultima revisione - deve essere fornito in formato elettronico PDF (in distribuzione controllata).",null,null,null,null,null,null,null,null,null,"X","X","O","O","X","O","O","X"]
[]
["A.4","Lista di riscontro (MD-09-12-S-DT) debitamente compilata in modalità \"self assessment\" per la valutazione della Biobanca.",null,null,null,null,null,null,null,null,null,"X","X","X","O",null,null,null,"O"]
[]
["A.5","Verbale dell'ultimo riesame della Direzione, in conformità a quanto previsto dalla norma.",null,null,null,null,null,null,null,null,null,"X",null,null,null,null,null,null,"X"]
[]
["A.6","Visura camerale in corso di validità legale (6 mesi)  o documento equivalente che attesti l’entità legale \n(ossia il soggetto giuridico anche pubblico) che si assume gli obblighi dell’attività in e/o sotto accreditamento  \n(come richiesto dalla DA-00 sez. 2.2.1).",null,null,null,null,null,null,null,null,null,"X","X",null,null,null,null,null,"X"]
[]
["A.7","Valutazione possibili effetti della riduzione sugli altri campi accreditati (vedi RG-22 6.2.1).",null,null,null,null,null,null,null,null,null,null,null,null,null,null,null,"X"]

{"sheet":"_config","index":9,"n_rows":64,"n_cols":10,"rows_kept":64,"cut":false,"hidden":true,"merged":[]}
["Aree",null,null,"Settore",null,"Tipo di procedura (tecnica/gestionale)",null,"Tipo di campione/strumento",null,"Domanda"]
[]
["(Area non codificata)","NOCOD",null,"[SBK-01] Materiale biologico di origine umana",null,"Tecnica",null,"Campione di misura di riferimento",null,"ACCREDITAMENTO"]
["[BBK] BIOBANKING UMANO","SBH",null,"[SBK-02] Materiale biologico di origine animale",null,"Gestionale",null,"Campione di misura di lavoro",null,"RINNOVO con conferma dello scopo di accreditamento"]
["[BBK] BIOBANKING VETERINARIO","SBV",null,"[SBK-03] Materiale biologico di origine vegetale",null,null,null,"Campione di misura viaggiatore",null,"RINNOVO con richiesta modifica dello scopo di accreditamento"]
["[BBK] BIOBANKING VEGETALE","SBG",null,"[SBK-04] Microorganismi",null,null,null,"Dispositivo di misura di trasferimento",null,"ESTENSIONE"]
["[BBK] BIOBANKING DI MICRORGANISMI","SBM",null,"[SBK-05] …",null,null,null,null,null,"MODIFICA dello scopo di accreditamento"]
[null,null,null,null,null,"Ruolo",null,"Attività di produzione",null,"ADEGUAMENTO NORMATIVO"]
[null,null,null,null,null,null,null,null,null,"RIDUZIONE"]
[null,null,null,null,null,"Responsabile del Laboratorio",null,"Lavorazione materiale",null,"VARIAZIONE ANAGRAFICA o TRASFERIMENTO DI TITOLARITA'"]
["Settore",null,null,null,null,"Sostituto del Responsabile",null,"Manipolazione"]
[null,null,null,null,null,"Responsabile UOD",null,"Valutazione omogeneità"]
["[SBH-01] Genetica",null,null,null,null,"Responsabile del Sistema di Gestione",null,"Valutazione stabilità"]
["[SBH-02] Anatomia patologica",null,null,null,null,"Assistente del Responsabile del Sistema di Gestione",null,"Caratterizzazione"]
["[SBV-01] Genetica",null,null,null,null,"Operatore",null,"Immagazzinamento"]
["[SBV-02] Anatomia patologica",null,null,null,null,null,null,"Distribuzione"]
["[SBG-01] Specie spontanee"]
["[SBG-02] Specie coltivate",null,null,"Categoria",null,"Direzione"]
["[SBM-01] Batteri",null,null,"Organismo  ",null,"Direzione Tecnica"]
["[SBM-02] Funghi filamentosi",null,null,"Organo",null,"Responsabile UOD/UOT/UOM"]
["[SBM-03] Lieviti",null,null,"Organoide ",null,"Responsabile del Sistema di Gestione"]
["[SBM-04] Virus",null,null,"Tessuto",null,"Operatore"]
[null,null,null,"Sangue intero e/o suoi derivati "]
[null,null,null,"Estratti di materiale biologico"]
[null,null,null,"cellule "]
[null,null,null,"Liquidi biologici "]
[null,null,null,"Secrezioni /escrezioni"]
[null,null,null,"Materiale biologico modificato e/o trasformato"]
[null,null,null,"Parte"]
[null,null,null,"Altro"]
[]
[]
[]
[]
[]
[null,null,null,"Specifica"]
[null,null,null,"Intero"]
[null,null,null,"Parziale"]
[null,null,null,"Cellule"]
[null,null,null,"Estratti"]
[]
[]
[]
[]
[]
[]
[]
[]
[]
[]
[]
["Attività",null,null,"Dati"]
["Raccolta",null,null,"Antropometrici"]
["Acquisizione",null,null,"Anagrafici"]
["Preparazione",null,null,"Clinici"]
["Preservazione",null,null,"Biochimici"]
["Conservazione",null,null,"Demografici"]
["Prova",null,null,"Diagnostici"]
["Analisi",null,null,"Fenotipi"]
["Distribuzione",null,null,"Filogenetici"]
[null,null,null,"Genetici"]
[null,null,null,"Porcedurali"]
[null,null,null,"Tassonomici"]
[null,null,null,"Altro (specificare)"]